Workbook

Sheet Ввод платежных данных
B1: КАЛЬКУЛЯТОР ЗАРАБОТНОЙ ПЛАТЫ | K1: ОКОНЧАНИЕ ПЕРИОДА: | L1: 41372 | N1: НАЗВАНИЕ ОРГАНИЗАЦИИ: | P1: Мир приключений
B3: Код | C3: Имя сотрудника | D3: Отработано обычн. часов | E3: Отпуск, ч | F3: Больничный, ч | G3: Сверхурочно, ч | H3: Сверхурочная ставка | I3: Зарплата брутто | J3: Налоги и уд-я | K3: Другие уд-я | L3: Зарплата нетто | N3: Почасовая ставка | O3: Налоговый статус | P3: Федеральный вычет | Q3: Налог штата | R3: Федеральный подоходный налог | S3: Социальный налог | T3: Отчисление в ФОМС | U3: Итого налогов удержано | V3: Страховое удержание | W3: Другие рег. удержания | X3: Итого рег. удержаний
B4: 1001 | C4: Григорий Верный | D4: 50 | E4: 5 | F4: 1 | I4: =SUM(Сотрудники[[#This Row],[Отработано обычн. часов]:[Больничный, ч]])*Сотрудники[[#This Row],[Почасовая ставка]]+Сотрудники[[#This Row],[Сверхурочно, ч]]*Сотрудники[[#This Row],[Сверхурочная ставка]] -> 560 | J4: =Сотрудники[[#This Row],[Зарплата брутто]]*Сотрудники[[#This Row],[Итого налогов удержано]] + Сотрудники[[#This Row],[Итого рег. удержаний]] -> 273.08 | K4: 20 | L4: =Сотрудники[[#This Row],[Зарплата брутто]]-Сотрудники[[#This Row],[Налоги и уд-я]]-Сотрудники[[#This Row],[Другие уд-я]] -> 266.92 | N4: 10 | O4: 1 | P4: 4 | Q4: 0.023 | R4: 0.28 | S4: 0.063 | T4: 0.0145 | U4: =SUM(Сотрудники[[#This Row],[Налог штата]:[Отчисление в ФОМС]]) -> 0.3805 | V4: 20 | W4: 40 | X4: =SUM(Сотрудники[[#This Row],[Страховое удержание]:[Другие рег. удержания]]) -> 60
B5: 1002 | C5: Владимир Егоров | D5: 40 | I5: =SUM(Сотрудники[[#This Row],[Отработано обычн. часов]:[Больничный, ч]])*Сотрудники[[#This Row],[Почасовая ставка]]+Сотрудники[[#This Row],[Сверхурочно, ч]]*Сотрудники[[#This Row],[Сверхурочная ставка]] -> 320 | J5: =Сотрудники[[#This Row],[Зарплата брутто]]*Сотрудники[[#This Row],[Итого налогов удержано]] + Сотрудники[[#This Row],[Итого рег. удержаний]] -> 131.76 | L5: =Сотрудники[[#This Row],[Зарплата брутто]]-Сотрудники[[#This Row],[Налоги и уд-я]]-Сотрудники[[#This Row],[Другие уд-я]] -> 188.24 | N5: 8 | O5: 1 | P5: 1 | Q5: 0.023 | R5: 0.28 | S5: 0.063 | T5: 0.0145 | U5: =SUM(Сотрудники[[#This Row],[Налог штата]:[Отчисление в ФОМС]]) -> 0.3805 | V5: 0 | W5: 10 | X5: =SUM(Сотрудники[[#This Row],[Страховое удержание]:[Другие рег. удержания]]) -> 10
B6: 1003 | C6: Юлия Ильина | D6: 35 | E6: 3 | I6: =SUM(Сотрудники[[#This Row],[Отработано обычн. часов]:[Больничный, ч]])*Сотрудники[[#This Row],[Почасовая ставка]]+Сотрудники[[#This Row],[Сверхурочно, ч]]*Сотрудники[[#This Row],[Сверхурочная ставка]] -> 532 | J6: =Сотрудники[[#This Row],[Зарплата брутто]]*Сотрудники[[#This Row],[Итого налогов удержано]] + Сотрудники[[#This Row],[Итого рег. удержаний]] -> 240.426 | L6: =Сотрудники[[#This Row],[Зарплата брутто]]-Сотрудники[[#This Row],[Налоги и уд-я]]-Сотрудники[[#This Row],[Другие уд-я]] -> 291.574 | N6: 14 | O6: 1 | P6: 3 | Q6: 0.023 | R6: 0.28 | S6: 0.063 | T6: 0.0145 | U6: =SUM(Сотрудники[[#This Row],[Налог штата]:[Отчисление в ФОМС]]) -> 0.3805 | V6: 18 | W6: 20 | X6: =SUM(Сотрудники[[#This Row],[Страховое удержание]:[Другие рег. удержания]]) -> 38
B7: 1008 | C7: Николай Грачев | D7: 50 | E7: 5 | F7: 1 | I7: =SUM(Сотрудники[[#This Row],[Отработано обычн. часов]:[Больничный, ч]])*Сотрудники[[#This Row],[Почасовая ставка]]+Сотрудники[[#This Row],[Сверхурочно, ч]]*Сотрудники[[#This Row],[Сверхурочная ставка]] -> 1120 | J7: =Сотрудники[[#This Row],[Зарплата брутто]]*Сотрудники[[#This Row],[Итого налогов удержано]] + Сотрудники[[#This Row],[Итого рег. удержаний]] -> 441.16 | L7: =Сотрудники[[#This Row],[Зарплата брутто]]-Сотрудники[[#This Row],[Налоги и уд-я]]-Сотрудники[[#This Row],[Другие уд-я]] -> 678.84 | N7: 20 | O7: 1 | P7: 0 | Q7: 0.023 | R7: 0.28 | S7: 0.063 | T7: 0.0145 | U7: =SUM(Сотрудники[[#This Row],[Налог штата]:[Отчисление в ФОМС]]) -> 0.3805 | V7: 15 | X7: =SUM(Сотрудники[[#This Row],[Страховое удержание]:[Другие рег. удержания]]) -> 15
B8: 1011 | C8: Инна Ожогина | D8: 40 | G8: 2 | H8: 15 | I8: =SUM(Сотрудники[[#This Row],[Отработано обычн. часов]:[Больничный, ч]])*Сотрудники[[#This Row],[Почасовая ставка]]+Сотрудники[[#This Row],[Сверхурочно, ч]]*Сотрудники[[#This Row],[Сверхурочная ставка]] -> 430 | J8: =Сотрудники[[#This Row],[Зарплата брутто]]*Сотрудники[[#This Row],[Итого налогов удержано]] + Сотрудники[[#This Row],[Итого рег. удержаний]] -> 223.615 | L8: =Сотрудники[[#This Row],[Зарплата брутто]]-Сотрудники[[#This Row],[Налоги и уд-я]]-Сотрудники[[#This Row],[Другие уд-я]] -> 206.385 | N8: 10 | O8: 1 | P8: 0 | Q8: 0.023 | R8: 0.28 | S8: 0.063 | T8: 0.0145 | U8: =SUM(Сотрудники[[#This Row],[Налог штата]:[Отчисление в ФОМС]]) -> 0.3805 | V8: 20 | W8: 40 | X8: =SUM(Сотрудники[[#This Row],[Страховое удержание]:[Другие рег. удержания]]) -> 60
B9: 1012 | C9: Сергей Климов | D9: 40 | E9: 5 | F9: 1 | I9: =SUM(Сотрудники[[#This Row],[Отработано обычн. часов]:[Больничный, ч]])*Сотрудники[[#This Row],[Почасовая ставка]]+Сотрудники[[#This Row],[Сверхурочно, ч]]*Сотрудники[[#This Row],[Сверхурочная ставка]] -> 552 | J9: =Сотрудники[[#This Row],[Зарплата брутто]]*Сотрудники[[#This Row],[Итого налогов удержано]] + Сотрудники[[#This Row],[Итого рег. удержаний]] -> 270.036 | L9: =Сотрудники[[#This Row],[Зарплата брутто]]-Сотрудники[[#This Row],[Налоги и уд-я]]-Сотрудники[[#This Row],[Другие уд-я]] -> 281.964 | N9: 12 | O9: 1 | P9: 4 | Q9: 0.023 | R9: 0.28 | S9: 0.063 | T9: 0.0145 | U9: =SUM(Сотрудники[[#This Row],[Налог штата]:[Отчисление в ФОМС]]) -> 0.3805 | V9: 20 | W9: 40 | X9: =SUM(Сотрудники[[#This Row],[Страховое удержание]:[Другие рег. удержания]]) -> 60
B10: 1025 | C10: Екатерина Подколзина | D10: 36 | F10: 2 | G10: 1 | H10: 18 | I10: =SUM(Сотрудники[[#This Row],[Отработано обычн. часов]:[Больничный, ч]])*Сотрудники[[#This Row],[Почасовая ставка]]+Сотрудники[[#This Row],[Сверхурочно, ч]]*Сотрудники[[#This Row],[Сверхурочная ставка]] -> 474 | J10: =Сотрудники[[#This Row],[Зарплата брутто]]*Сотрудники[[#This Row],[Итого налогов удержано]] + Сотрудники[[#This Row],[Итого рег. удержаний]] -> 225.357 | K10: 25 | L10: =Сотрудники[[#This Row],[Зарплата брутто]]-Сотрудники[[#This Row],[Налоги и уд-я]]-Сотрудники[[#This Row],[Другие уд-я]] -> 223.643 | N10: 12 | O10: 1 | P10: 2 | Q10: 0.023 | R10: 0.28 | S10: 0.063 | T10: 0.0145 | U10: =SUM(Сотрудники[[#This Row],[Налог штата]:[Отчисление в ФОМС]]) -> 0.3805 | V10: 25 | W10: 20 | X10: =SUM(Сотрудники[[#This Row],[Страховое удержание]:[Другие рег. удержания]]) -> 45
B11: 1032 | C11: Олег Анашкин | D11: 40 | E11: 5 | F11: 1 | I11: =SUM(Сотрудники[[#This Row],[Отработано обычн. часов]:[Больничный, ч]])*Сотрудники[[#This Row],[Почасовая ставка]]+Сотрудники[[#This Row],[Сверхурочно, ч]]*Сотрудники[[#This Row],[Сверхурочная ставка]] -> 460 | J11: =Сотрудники[[#This Row],[Зарплата брутто]]*Сотрудники[[#This Row],[Итого налогов удержано]] + Сотрудники[[#This Row],[Итого рег. удержаний]] -> 175.03 | K11: 50 | L11: =Сотрудники[[#This Row],[Зарплата брутто]]-Сотрудники[[#This Row],[Налоги и уд-я]]-Сотрудники[[#This Row],[Другие уд-я]] -> 234.97 | N11: 10 | O11: 1 | P11: 3 | Q11: 0.023 | R11: 0.28 | S11: 0.063 | T11: 0.0145 | U11: =SUM(Сотрудники[[#This Row],[Налог штата]:[Отчисление в ФОМС]]) -> 0.3805 | X11: =SUM(Сотрудники[[#This Row],[Страховое удержание]:[Другие рег. удержания]]) -> 0
B12: 1049 | C12: Руслан Шашков | D12: 40 | E12: 1 | I12: =SUM(Сотрудники[[#This Row],[Отработано обычн. часов]:[Больничный, ч]])*Сотрудники[[#This Row],[Почасовая ставка]]+Сотрудники[[#This Row],[Сверхурочно, ч]]*Сотрудники[[#This Row],[Сверхурочная ставка]] -> 615 | J12: =Сотрудники[[#This Row],[Зарплата брутто]]*Сотрудники[[#This Row],[Итого налогов удержано]] + Сотрудники[[#This Row],[Итого рег. удержаний]] -> 259.0075 | K12: 23 | L12: =Сотрудники[[#This Row],[Зарплата брутто]]-Сотрудники[[#This Row],[Налоги и уд-я]]-Сотрудники[[#This Row],[Другие уд-я]] -> 332.9925 | N12: 15 | O12: 1 | P12: 2 | Q12: 0.023 | R12: 0.28 | S12: 0.063 | T12: 0.0145 | U12: =SUM(Сотрудники[[#This Row],[Налог штата]:[Отчисление в ФОМС]]) -> 0.3805 | V12: 25 | X12: =SUM(Сотрудники[[#This Row],[Страховое удержание]:[Другие рег. удержания]]) -> 25
B13: Итоги | C13: =SUBTOTAL(103,Сотрудники[Имя сотрудника]) -> 9 | D13: =SUBTOTAL(109,Сотрудники[Отработано обычн. часов]) -> 371 | E13: =SUBTOTAL(109,Сотрудники[Отпуск, ч]) -> 24 | F13: =SUBTOTAL(109,Сотрудники[Больничный, ч]) -> 6 | G13: =SUBTOTAL(109,Сотрудники[Сверхурочно, ч]) -> 3 | I13: =SUBTOTAL(109,Сотрудники[Зарплата брутто]) -> 5063 | J13: =SUBTOTAL(109,Сотрудники[Налоги и уд-я]) -> 2239.4715 | K13: =SUBTOTAL(109,Сотрудники[Другие уд-я]) -> 118 | L13: =SUBTOTAL(109,Сотрудники[Зарплата нетто]) -> 2705.5285 | V13: =SUBTOTAL(109,Сотрудники[Страховое удержание]) -> 143 | W13: =SUBTOTAL(109,Сотрудники[Другие рег. удержания]) -> 170 | X13: =SUBTOTAL(109,Сотрудники[Итого рег. удержаний]) -> 313

Sheet шаблон_квитанций (hidden)
C2: =НазваниеКомпании -> Мир приключений
C3: ПЕРИОД | D3: =ОкончаниеПериода -> 41372 | G3: ИМЯ | H3: =IFERROR(INDEX(Сотрудники[Имя сотрудника],Квитанция),"") -> Григорий Верный | K3: КОД СОТРУДНИКА | L3: =IFERROR(INDEX(Сотрудники[Код],Квитанция),"") -> 1001
C4: Налоговый статус | E4: =IFERROR(INDEX(Сотрудники[Налоговый статус],Квитанция),"") -> 1 | G4: Федеральный вычет (из W-4) | I4: =IFERROR(INDEX(Сотрудники[Федеральный вычет],Квитанция),"") -> 4 | K4: Отработано часов | M4: =IFERROR(INDEX(Сотрудники[Отработано обычн. часов],Квитанция),"") -> 50
C5: Почасовая ставка | E5: =IFERROR(INDEX(Сотрудники[Почасовая ставка],Квитанция),"") -> 10 | G5: Сверхурочная ставка | I5: =IFERROR(INDEX(Сотрудники[Сверхурочная ставка],Квитанция),"") -> 0 | K5: Больничный, ч | M5: =IFERROR(INDEX(Сотрудники[Больничный, ч],Квитанция),"") -> 1
C6: Социальный налог | E6: =IFERROR(INDEX(Сотрудники[Социальный налог],Квитанция) * INDEX(Сотрудники[Зарплата брутто],Квитанция),"") -> 35.28 | G6: Федеральный подоходный налог | I6: =IFERROR(INDEX(Сотрудники[Федеральный подоходный налог],Квитанция) * INDEX(Сотрудники[Зарплата брутто],Квитанция),"") -> 156.8 | K6: Отпуск, ч | M6: =IFERROR(INDEX(Сотрудники[Отпуск, ч],Квитанция),"") -> 5
C7: Отчисление в ФОМС | E7: =IFERROR(INDEX(Сотрудники[Отчисление в ФОМС],Квитанция) * INDEX(Сотрудники[Зарплата брутто],Квитанция),"") -> 8.12 | G7: Налог штата | I7: =IFERROR(INDEX(Сотрудники[Налог штата],Квитанция) * INDEX(Сотрудники[Зарплата брутто],Квитанция),"") -> 12.88 | K7: Сверхурочно, ч | M7: =IFERROR(INDEX(Сотрудники[Сверхурочно, ч],Квитанция),"") -> 0
C8: Страховое удержание | E8: =IFERROR(INDEX(Сотрудники[Страховое удержание],Квитанция),"") -> 20 | G8: Другие регулярные удержания | I8: =IFERROR(INDEX(Сотрудники[Другие рег. удержания],Квитанция),"") -> 40 | K8: Зарплата брутто | M8: =IFERROR(INDEX(Сотрудники[Зарплата брутто],Квитанция),"") -> 560
C9: Итого налогов и | E9: =IFERROR(INDEX(Сотрудники[Налоги и уд-я],Квитанция),"") -> 273.08 | G9: Другие удержания | I9: =IFERROR(INDEX(Сотрудники[Другие уд-я],Квитанция),"") -> 20 | K9: Итого налогов и удержаний | M9: =IFERROR(INDEX(Сотрудники[Налоги и уд-я],Квитанция) + INDEX(Сотрудники[Другие уд-я],Квитанция),"") -> 293.08
C10: регулярных удержаний
K11: ЗАРПЛАТА НЕТТО | M11: =IFERROR(INDEX(Сотрудники[Зарплата нетто],Квитанция),"") -> 266.92
C14: =НазваниеКомпании -> Мир приключений
C15: ПЕРИОД | D15: =ОкончаниеПериода -> 41372 | G15: ИМЯ | H15: =IFERROR(INDEX(Сотрудники[Имя сотрудника],Квитанция),"") -> Владимир Егоров | K15: КОД СОТРУДНИКА | L15: =IFERROR(INDEX(Сотрудники[Код],Квитанция),"") -> 1002
C16: Налоговый статус | E16: =IFERROR(INDEX(Сотрудники[Налоговый статус],Квитанция),"") -> 1 | G16: Федеральный вычет (из W-4) | I16: =IFERROR(INDEX(Сотрудники[Федеральный вычет],Квитанция),"") -> 1 | K16: Отработано часов | M16: =IFERROR(INDEX(Сотрудники[Отработано обычн. часов],Квитанция),"") -> 40
C17: Почасовая ставка | E17: =IFERROR(INDEX(Сотрудники[Почасовая ставка],Квитанция),"") -> 8 | G17: Сверхурочная ставка | I17: =IFERROR(INDEX(Сотрудники[Сверхурочная ставка],Квитанция),"") -> 0 | K17: Больничный, ч | M17: =IFERROR(INDEX(Сотрудники[Больничный, ч],Квитанция),"") -> 0
C18: Социальный налог | E18: =IFERROR(INDEX(Сотрудники[Социальный налог],Квитанция) * INDEX(Сотрудники[Зарплата брутто],Квитанция),"") -> 20.16 | G18: Федеральный подоходный налог | I18: =IFERROR(INDEX(Сотрудники[Федеральный подоходный налог],Квитанция) * INDEX(Сотрудники[Зарплата брутто],Квитанция),"") -> 89.6 | K18: Отпуск, ч | M18: =IFERROR(INDEX(Сотрудники[Отпуск, ч],Квитанция),"") -> 0
C19: Отчисление в ФОМС | E19: =IFERROR(INDEX(Сотрудники[Отчисление в ФОМС],Квитанция) * INDEX(Сотрудники[Зарплата брутто],Квитанция),"") -> 4.64 | G19: Налог штата | I19: =IFERROR(INDEX(Сотрудники[Налог штата],Квитанция) * INDEX(Сотрудники[Зарплата брутто],Квитанция),"") -> 7.36 | K19: Сверхурочно, ч | M19: =IFERROR(INDEX(Сотрудники[Сверхурочно, ч],Квитанция),"") -> 0
C20: Страховое удержание | E20: =IFERROR(INDEX(Сотрудники[Страховое удержание],Квитанция),"") -> 0 | G20: Другие регулярные удержания | I20: =IFERROR(INDEX(Сотрудники[Другие рег. удержания],Квитанция),"") -> 10 | K20: Зарплата брутто | M20: =IFERROR(INDEX(Сотрудники[Зарплата брутто],Квитанция),"") -> 320
C21: Итого налогов и | E21: =IFERROR(INDEX(Сотрудники[Налоги и уд-я],Квитанция),"") -> 131.76 | G21: Другие удержания | I21: =IFERROR(INDEX(Сотрудники[Другие уд-я],Квитанция),"") -> 0 | K21: Итого налогов и удержаний | M21: =IFERROR(INDEX(Сотрудники[Налоги и уд-я],Квитанция) + INDEX(Сотрудники[Другие уд-я],Квитанция),"") -> 131.76
C22: регулярных удержаний
K23: ЗАРПЛАТА НЕТТО | M23: =IFERROR(INDEX(Сотрудники[Зарплата нетто],Квитанция),"") -> 188.24
C26: =НазваниеКомпании -> Мир приключений
C27: ПЕРИОД | D27: =ОкончаниеПериода -> 41372 | G27: ИМЯ | H27: =IFERROR(INDEX(Сотрудники[Имя сотрудника],Квитанция),"") -> Юлия Ильина | K27: КОД СОТРУДНИКА | L27: =IFERROR(INDEX(Сотрудники[Код],Квитанция),"") -> 1003
C28: Налоговый статус | E28: =IFERROR(INDEX(Сотрудники[Налоговый статус],Квитанция),"") -> 1 | G28: Федеральный вычет (из W-4) | I28: =IFERROR(INDEX(Сотрудники[Федеральный вычет],Квитанция),"") -> 3 | K28: Отработано часов | M28: =IFERROR(INDEX(Сотрудники[Отработано обычн. часов],Квитанция),"") -> 35
C29: Почасовая ставка | E29: =IFERROR(INDEX(Сотрудники[Почасовая ставка],Квитанция),"") -> 14 | G29: Сверхурочная ставка | I29: =IFERROR(INDEX(Сотрудники[Сверхурочная ставка],Квитанция),"") -> 0 | K29: Больничный, ч | M29: =IFERROR(INDEX(Сотрудники[Больничный, ч],Квитанция),"") -> 0
C30: Социальный налог | E30: =IFERROR(INDEX(Сотрудники[Социальный налог],Квитанция) * INDEX(Сотрудники[Зарплата брутто],Квитанция),"") -> 33.516 | G30: Федеральный подоходный налог | I30: =IFERROR(INDEX(Сотрудники[Федеральный подоходный налог],Квитанция) * INDEX(Сотрудники[Зарплата брутто],Квитанция),"") -> 148.96 | K30: Отпуск, ч | M30: =IFERROR(INDEX(Сотрудники[Отпуск, ч],Квитанция),"") -> 3
C31: Отчисление в ФОМС | E31: =IFERROR(INDEX(Сотрудники[Отчисление в ФОМС],Квитанция) * INDEX(Сотрудники[Зарплата брутто],Квитанция),"") -> 7.714 | G31: Налог штата | I31: =IFERROR(INDEX(Сотрудники[Налог штата],Квитанция) * INDEX(Сотрудники[Зарплата брутто],Квитанция),"") -> 12.236 | K31: Сверхурочно, ч | M31: =IFERROR(INDEX(Сотрудники[Сверхурочно, ч],Квитанция),"") -> 0
C32: Страховое удержание | E32: =IFERROR(INDEX(Сотрудники[Страховое удержание],Квитанция),"") -> 18 | G32: Другие регулярные удержания | I32: =IFERROR(INDEX(Сотрудники[Другие рег. удержания],Квитанция),"") -> 20 | K32: Зарплата брутто | M32: =IFERROR(INDEX(Сотрудники[Зарплата брутто],Квитанция),"") -> 532
C33: Итого налогов и | E33: =IFERROR(INDEX(Сотрудники[Налоги и уд-я],Квитанция),"") -> 240.426 | G33: Другие удержания | I33: =IFERROR(INDEX(Сотрудники[Другие уд-я],Квитанция),"") -> 0 | K33: Итого налогов и удержаний | M33: =IFERROR(INDEX(Сотрудники[Налоги и уд-я],Квитанция) + INDEX(Сотрудники[Другие уд-я],Квитанция),"") -> 240.426
C34: регулярных удержаний
K35: ЗАРПЛАТА НЕТТО | M35: =IFERROR(INDEX(Сотрудники[Зарплата нетто],Квитанция),"") -> 291.574
C38: =НазваниеКомпании -> Мир приключений
C39: ПЕРИОД | D39: =ОкончаниеПериода -> 41372 | G39: ИМЯ | H39: =IFERROR(INDEX(Сотрудники[Имя сотрудника],Квитанция),"") -> Николай Грачев | K39: КОД СОТРУДНИКА | L39: =IFERROR(INDEX(Сотрудники[Код],Квитанция),"") -> 1008
C40: Налоговый статус | E40: =IFERROR(INDEX(Сотрудники[Налоговый статус],Квитанция),"") -> 1 | G40: Федеральный вычет (из W-4) | I40: =IFERROR(INDEX(Сотрудники[Федеральный вычет],Квитанция),"") -> 0 | K40: Отработано часов | M40: =IFERROR(INDEX(Сотрудники[Отработано обычн. часов],Квитанция),"") -> 50
C41: Почасовая ставка | E41: =IFERROR(INDEX(Сотрудники[Почасовая ставка],Квитанция),"") -> 20 | G41: Сверхурочная ставка | I41: =IFERROR(INDEX(Сотрудники[Сверхурочная ставка],Квитанция),"") -> 0 | K41: Больничный, ч | M41: =IFERROR(INDEX(Сотрудники[Больничный, ч],Квитанция),"") -> 1
C42: Социальный налог | E42: =IFERROR(INDEX(Сотрудники[Социальный налог],Квитанция) * INDEX(Сотрудники[Зарплата брутто],Квитанция),"") -> 70.56 | G42: Федеральный подоходный налог | I42: =IFERROR(INDEX(Сотрудники[Федеральный подоходный налог],Квитанция) * INDEX(Сотрудники[Зарплата брутто],Квитанция),"") -> 313.6 | K42: Отпуск, ч | M42: =IFERROR(INDEX(Сотрудники[Отпуск, ч],Квитанция),"") -> 5
C43: Налог Medicare | E43: =IFERROR(INDEX(Сотрудники[Отчисление в ФОМС],Квитанция) * INDEX(Сотрудники[Зарплата брутто],Квитанция),"") -> 16.24 | G43: Налог штата | I43: =IFERROR(INDEX(Сотрудники[Налог штата],Квитанция) * INDEX(Сотрудники[Зарплата брутто],Квитанция),"") -> 25.76 | K43: Сверхурочно, ч | M43: =IFERROR(INDEX(Сотрудники[Сверхурочно, ч],Квитанция),"") -> 0
C44: Страховое удержание | E44: =IFERROR(INDEX(Сотрудники[Страховое удержание],Квитанция),"") -> 15 | G44: Другие регулярные удержания | I44: =IFERROR(INDEX(Сотрудники[Другие рег. удержания],Квитанция),"") -> 0 | K44: Зарплата брутто | M44: =IFERROR(INDEX(Сотрудники[Зарплата брутто],Квитанция),"") -> 1120
C45: Итого налогов и | E45: =IFERROR(INDEX(Сотрудники[Налоги и уд-я],Квитанция),"") -> 441.16 | G45: Другие удержания | I45: =IFERROR(INDEX(Сотрудники[Другие уд-я],Квитанция),"") -> 0 | K45: Итого налогов и удержаний | M45: =IFERROR(INDEX(Сотрудники[Налоги и уд-я],Квитанция) + INDEX(Сотрудники[Другие уд-я],Квитанция),"") -> 441.16
C46: регулярных удержаний
K47: ЗАРПЛАТА НЕТТО | M47: =IFERROR(INDEX(Сотрудники[Зарплата нетто],Квитанция),"") -> 678.84
